bitfinex/quotes_ETHUSD_20230116
["timestamp","ask_amount","ask_price","bid_price","bid_amount"]
[1673908508138,27.92398164,1584.4,1584.0,20.6144912]
[1673908508329,3.11662407,1584.3,1584.0,1.73776366]
[1673908508510,3.11662407,1584.2,1584.0,7.9880012]
[1673908508720,3.11662407,1584.2,1584.0,14.36359366]
[1673908509786,3.11662407,1584.1,1584.0,1.73776366]
[1673908510000,3.11662407,1584.1,1584.0,1.6751012]
[1673908510928,10.22752754,1584.1,1584.0,1.6751012]
[1673908511134,10.72899153,1584.1,1584.0,1.6751012]
[1673908511360,16.38891916,1584.1,1584.0,1.6751012]
[1673908511567,13.88891916,1584.1,1584.0,1.6751012]
[1673908512026,9.84677198,1584.1,1584.0,1.6751012]
[1673908512873,9.84677198,1584.1,1584.0,1.67133095]
[1673908513080,11.7385144,1584.1,1584.0,1.67133095]
[1673908513233,21.87008415,1584.1,1583.9,0.28426736]
[1673908513443,13.21237826,1584.0,1583.9,0.28426736]
[1673908513657,10.92824889,1584.0,1583.9,0.28426736]
[1673908513900,8.5633248,1584.0,1583.9,0.28426736]
[1673908514234,5.49760401,1584.0,1583.9,0.28426736]
[1673908515371,7.38947336,1584.0,1583.9,0.28426736]
[1673908515580,5.49760401,1584.0,1583.9,0.28426736]
[1673908518342,11.42809294,1584.0,1583.9,0.28426736]
[1673908518527,13.32014768,1584.0,1583.9,0.28426736]
[1673908518703,17.25613821,1584.0,1583.9,0.28426736]
[1673908518915,25.46099393,1584.0,1583.9,0.28426736]
[1673908519125,23.09606984,1584.0,1583.9,0.28426736]
[1673908519367,25.46099393,1584.0,1583.9,0.28426736]
[1673908519533,31.77412393,1584.0,1583.9,0.28426736]
[1673908520312,29.40919984,1584.0,1583.9,0.28426736]
[1673908521760,29.40891705,1584.0,1583.9,0.28426736]
[1673908521974,29.88239821,1584.0,1583.9,0.28426736]
[1673908522214,29.4088854,1584.0,1583.9,0.28426736]
[1673908522936,31.77380949,1584.0,1583.9,0.28426736]
[1673908523108,29.4088854,1584.0,1583.9,0.28426736]
[1673908523318,29.4088854,1584.0,1583.9,0.23426736]
[1673908524315,25.37026582,1584.0,1583.9,0.23426736]
[1673908524808,19.05713582,1584.0,1583.9,0.23426736]
[1673908526207,10.62259454,1584.0,1583.9,0.23426736]
[1673908526767,6.68660401,1584.0,1583.9,0.23426736]
[1673908526978,5.49760401,1584.0,1583.9,0.23426736]
[1673908529451,32.75202487,1584.0,1583.9,0.23426736]
[1673908529778,32.98202487,1584.0,1583.9,0.23426736]
[1673908530138,45.52192487,1584.0,1583.9,0.23426736]
[1673908530367,51.65201253,1584.0,1583.9,0.23426736]
[1673908530915,55.21493662,1584.0,1583.9,0.23426736]
[1673908531336,52.85001253,1584.0,1583.9,0.23426736]
[1673908531858,2.5,1583.9,1583.7,0.06093714]
[1673908532073,30.84610507,1583.8,1583.7,0.06093714]
[1673908532380,54.19210635,1583.8,1583.7,0.06093714]
[1673908532861,2.5,1583.7,1583.6,0.06343598]
[1673908533020,27.9695544,1583.7,1583.6,0.06343598]
[1673908533228,27.98555568,1583.7,1583.6,0.06343598]
[1673908533471,30.31123387,1583.7,1583.6,0.06343598]
[1673908534064,36.62555387,1583.7,1583.6,0.06343598]
[1673908534644,2.5,1583.6,1583.5,0.05698721]
[1673908534855,25.20384042,1583.6,1583.4,0.07501485]
[1673908535015,25.5868,1583.4,1583.0,0.07749602]
[1673908535225,4.53407307,1583.2,1583.0,0.07749602]
[1673908535466,21.43533265,1583.2,1583.0,0.07749602]
[1673908535803,21.45133393,1583.2,1583.0,0.07749602]
[1673908536010,20.03388493,1583.2,1583.0,0.07749602]
[1673908536230,24.27561852,1583.2,1583.0,0.07749602]
[1673908536542,26.77561852,1583.2,1583.1,0.00014058]
[1673908537007,24.27561852,1583.2,1583.1,0.00014058]
[1673908537218,30.91561852,1583.2,1583.1,0.00014058]
[1673908537430,48.75646752,1583.2,1583.1,0.00014058]
[1673908538282,47.33901852,1583.2,1583.1,0.00014058]
[1673908538490,40.69901852,1583.2,1583.1,0.00014058]
[1673908539020,15.13344,1583.1,1583.0,0.0276366]
[1673908539251,27.69958259,1583.1,1583.0,0.0276366]
[1673908539656,37.33958259,1583.1,1583.0,0.0276366]
[1673908540094,2.5,1583.0,1582.9,0.09540455]
[1673908540439,24.90746365,1583.0,1582.9,0.09540455]
[1673908540606,27.92346493,1583.0,1582.9,0.09540455]
[1673908540828,30.24914312,1583.0,1582.9,0.09540455]
[1673908542090,30.24914312,1583.0,1582.9,0.04540455]
[1673908542398,38.07614312,1583.0,1582.9,0.04540455]
[1673908542749,52.07614312,1583.0,1582.9,0.04540455]
[1673908542904,59.26714312,1583.0,1582.9,0.04540455]
[1673908543116,59.9134823,1583.0,1582.9,0.04540455]
[1673908543542,59.26714312,1583.0,1582.9,0.04540455]
[1673908545116,21.77502,1582.9,1582.8,0.0936438]
[1673908545341,61.74590742,1582.9,1582.8,0.0936438]
[1673908545548,68.06341742,1582.9,1582.8,0.0936438]
[1673908546209,82.06341742,1582.9,1582.8,0.0936438]
[1673908546805,6.64,1582.7,1582.6,0.04423007]
[1673908547020,17.62824493,1582.7,1582.6,0.04423007]
[1673908547257,48.63310942,1582.7,1582.6,0.04423007]
[1673908548116,48.63310942,1582.7,1582.3,0.11932927]
[1673908548323,5.50162407,1582.4,1582.3,0.11932927]
[1673908548537,22.09206999,1582.4,1582.3,0.11932927]
[1673908548919,26.11649701,1582.4,1582.3,0.11932927]
[1673908549139,42.58619471,1582.4,1582.3,0.11932927]
[1673908550328,49.22619471,1582.4,1582.3,0.11932927]
[1673908550698,42.58619471,1582.4,1582.3,0.11932927]
[1673908550957,36.26668471,1582.4,1582.3,0.11932927]
[1673908553005,25.92274769,1582.4,1582.3,0.11932927]
[1673908553265,22.44914999,1582.4,1582.3,0.11932927]
[1673908554006,16.12963999,1582.4,1582.3,0.11932927]
[1673908554179,13.74463999,1582.4,1582.3,0.11932927]
[1673908555103,14.94263999,1582.4,1582.3,0.11932927]
[1673908555317,21.26214999,1582.4,1582.3,0.11932927]
[1673908555524,25.85024899,1582.4,1582.3,0.11932927]
[1673908556100,32.39975899,1582.4,1582.3,0.11932927]
[1673908556755,31.42575899,1582.4,1582.3,0.11932927]
[1673908557313,35.45018601,1582.4,1582.3,0.11932927]
[1673908557574,41.76969601,1582.4,1582.3,0.11932927]
[1673908559712,41.76969601,1582.4,1582.3,0.00932927]
[1673908560080,44.76969601,1582.4,1582.3,0.00932927]
[1673908560286,51.40969601,1582.4,1582.3,0.00932927]
[1673908560537,52.84569601,1582.4,1582.3,0.00932927]
[1673908560936,46.20569601,1582.4,1582.3,0.00932927]
[1673908561389,53.49203519,1582.4,1582.3,0.00932927]
[1673908561604,52.84569601,1582.4,1582.3,0.00932927]
[1673908562916,54.28069601,1582.4,1582.3,0.00932927]
[1673908563120,54.92703519,1582.4,1582.3,0.00032927]
[1673908563335,8.64,1582.3,1582.0,0.1339236]
[1673908563590,18.62504407,1582.1,1582.0,0.1339236]
[1673908563866,49.85618237,1582.1,1582.0,0.1339236]
[1673908564107,66.21908237,1582.1,1582.0,0.1339236]
[1673908564744,52.21908237,1582.1,1582.0,0.1339236]
[1673908564934,50.78808237,1582.1,1582.0,0.1339236]
[1673908565145,55.66805236,1582.1,1582.0,0.1339236]
[1673908565566,55.66805236,1582.1,1581.6,6.32266]
[1673908565567,69.66805236,1582.1,1581.6,0.06266246]
[1673908565775,3.11662407,1581.7,1581.5,0.1250992]
[1673908565984,1.428,1581.9,1581.5,0.0750992]
[1673908565985,3.11662407,1581.6,1581.5,0.0750992]
[1673908566394,3.11662407,1581.6,1581.5,0.71495912]
[1673908566395,0.60615267,1581.6,1581.5,0.71495912]
[1673908566619,0.01600128,1581.9,1581.5,13.36117912]
[1673908566844,3.11662407,1581.8,1581.5,14.85984158]
[1673908567023,13.37890128,1582.1,1581.5,14.85984158]
[1673908567024,3.11662407,1581.7,1581.5,8.53673158]
[1673908567239,3.11662407,1581.7,1581.5,7.10073158]
[1673908567968,3.11662407,1581.7,1581.5,7.05073158]
[1673908568759,3.11662407,1581.7,1581.5,13.37384158]
[1673908568760,1.4431358,1581.7,1581.5,13.37384158]
[1673908569214,1.4451358,1581.7,1581.5,13.37184158]
[1673908569334,3.11662407,1581.6,1581.5,6.41087166]
[1673908569544,3.11662407,1581.6,1581.5,6.36087166]
[1673908570437,3.11662407,1581.6,1581.5,0.06266246]
[1673908570657,3.11662407,1581.6,1581.4,12.70896246]
[1673908571023,3.11662407,1581.5,1581.4,6.38581246]
[1673908571962,3.11662407,1581.5,1581.4,0.06266246]
[1673908572212,3.11662407,1581.5,1581.3,0.06266246]
[1673908572382,3.11662407,1581.5,1581.2,6.45446695]
[1673908572383,3.11662407,1581.4,1581.2,0.19320941]
[1673908572594,3.11662407,1581.4,1581.2,0.13054695]
[1673908572595,3.11662407,1581.3,1581.2,0.13054695]
[1673908574091,7.14261763,1581.3,1581.2,0.13054695]
[1673908574412,30.90125924,1581.3,1581.2,0.13054695]
[1673908574633,28.90125924,1581.3,1581.1,0.92643866]
[1673908574963,11.09893407,1581.2,1581.1,0.92643866]
[1673908575118,11.11493535,1581.2,1581.1,0.92643866]
[1673908575324,28.10186249,1581.2,1581.1,0.92643866]
[1673908575541,25.38592113,1581.2,1581.1,0.92643866]
[1673908575783,7.05668399,1581.2,1581.1,0.92643866]
[1673908575992,3.36262535,1581.2,1581.1,0.92643866]
[1673908576184,7.36774021,1581.2,1581.1,0.92643866]
[1673908576412,23.46836149,1581.2,1581.1,0.64953866]
[1673908576623,28.10836149,1581.2,1581.1,0.64953866]
[1673908579164,34.43267149,1581.2,1581.1,0.64953866]
[1673908579376,38.98981703,1581.2,1581.1,0.64953866]
[1673908580430,26.02550703,1581.2,1581.1,0.64953866]
[1673908580584,22.00439089,1581.2,1581.1,0.64953866]
[1673908580790,20.56839089,1581.2,1581.1,0.64953866]
[1673908581697,14.24408089,1581.2,1581.1,0.64953866]
[1673908581877,7.68977089,1581.2,1581.1,0.64953866]
[1673908582090,3.13262535,1581.2,1581.1,0.64953866]
[1673908582305,3.11662407,1581.2,1581.1,0.64953866]
[1673908583148,3.11662407,1581.2,1581.1,13.29895866]
[1673908583484,3.11662407,1581.2,1581.1,13.36162112]
[1673908584487,0.01600128,1581.3,1581.1,13.36162112]
[1673908584742,0.01600128,1581.4,1581.2,1.33616211]
[1673908584908,27.25514949,1581.8,1581.3,12.69582383]
[1673908585120,3.11662407,1581.7,1581.3,12.75848629]
[1673908585320,3.11662407,1581.6,1581.3,13.40482547]
[1673908585525,3.11662407,1581.6,1581.4,1.34048255]
[1673908585789,3.11662407,1581.6,1581.5,18.96933]
[1673908586004,10.46038986,1582.0,1581.5,18.96933]
[1673908586005,0.01600128,1581.8,1581.5,19.03199246]
[1673908586156,3.11662407,1581.7,1581.5,19.03199246]
[1673908586863,0.01600128,1581.9,1581.5,19.03199246]
[1673908587032,3.11662407,1581.8,1581.5,21.27677388]
[1673908587984,3.11662407,1581.8,1581.5,22.71277388]
[1673908588386,2.17520513,1581.8,1581.5,22.71277388]
[1673908588603,0.06819114,1582.0,1581.9,1.67366548]
[1673908588837,3.16881393,1582.0,1581.9,1.67366548]
[1673908589049,3.16881393,1582.0,1581.8,0.06266246]
[1673908589050,45.42743588,1582.0,1581.8,0.06266246]
[1673908589237,17.09910666,1581.9,1581.3,12.75784629]
[1673908589476,21.1022172,1581.8,1581.3,12.75784629]
[1673908589682,7.10413255,1581.7,1581.3,12.75784629]
[1673908589862,3.11662407,1581.6,1581.3,12.75784629]
[1673908590069,3.39656466,1581.7,1581.3,12.75784629]
[1673908590070,3.11662407,1581.5,1581.3,12.75784629]
[1673908592528,3.11662407,1581.5,1581.3,19.08175629]
[1673908592693,0.01600128,1581.7,1581.3,19.08175629]
[1673908592905,3.11662407,1581.6,1581.3,19.08175629]
[1673908593230,3.11662407,1581.6,1581.3,20.51775629]
[1673908597741,0.01600128,1581.7,1581.3,20.51775629]
[1673908597953,3.11662407,1581.7,1581.3,19.08175629]
[1673908598855,3.11662407,1581.7,1581.3,20.29670639]
[1673908599222,3.11662407,1581.7,1581.4,0.52229774]
[1673908599707,3.11662407,1581.7,1581.5,18.96933]
[1673908600046,3.11662407,1581.7,1581.5,19.03199246]
[1673908600589,3.11662407,1581.6,1581.5,6.38577246]
[1673908603700,49.32282652,1581.6,1581.5,0.062]
[1673908603849,6.385,1581.5,1580.9,6.32539]
[1673908604212,4.55262407,1581.3,1580.9,6.39139]
[1673908604434,3.11662407,1581.1,1580.9,0.066]
[1673908604579,0.68526241,1581.2,1580.6,15.59644113]
[1673908604580,3.11662407,1581.0,1580.6,15.59644113]
[1673908604789,3.11662407,1580.9,1580.7,1.56975656]
[1673908605001,3.11662407,1580.8,1580.7,1.56975656]
[1673908607000,3.11662407,1580.8,1580.7,7.89606656]
[1673908607241,3.11662407,1580.8,1580.7,7.96206656]
[1673908607773,3.11662407,1580.8,1580.7,7.96207343]
[1673908608615,1.44221954,1580.8,1580.7,7.96207343]
[1673908608837,1.44221954,1580.8,1580.7,14.28838343]
[1673908610999,3.11662407,1581.0,1580.8,1.06932134]
[1673908611239,3.42828648,1580.9,1580.8,1.06932134]
[1673908618829,3.11662407,1580.9,1580.8,1.06932134]
[1673908619040,0.01600128,1581.0,1580.8,13.72114134]
[1673908619227,0.01600128,1581.3,1580.8,15.22314134]
[1673908619567,13.17840128,1581.4,1581.0,18.97509]
[1673908619717,13.17840128,1581.4,1581.1,1.897509]
[1673908619924,13.17840128,1581.4,1581.2,18.97293]
[1673908620129,13.17840128,1581.4,1581.2,19.03893]
[1673908620346,0.01600128,1581.4,1581.2,19.03893]
[1673908620591,24.0985447,1581.6,1581.2,19.03893]
[1673908620801,23.1550281,1581.6,1581.2,19.03893]
[1673908621199,25.69676517,1581.6,1581.2,12.71462]
[1673908621879,3.11662407,1581.5,1581.2,12.71462]
[1673908622102,3.11662407,1581.4,1581.2,12.71462]
[1673908623218,3.11662407,1581.4,1581.2,6.39031]
[1673908623567,3.11662407,1581.4,1581.2,0.066]
[1673908623742,3.4298866,1581.4,1581.0,8.39103]
[1673908623951,3.11662407,1581.4,1581.0,8.39103]
[1673908624828,3.11662407,1581.4,1581.0,6.39103]
[1673908626803,3.11662407,1581.4,1581.0,12.71614]
[1673908628504,2.17496121,1581.4,1581.0,12.71614]
[1673908628663,2.17496121,1581.4,1581.0,19.04125]
[1673908629033,2.17496121,1581.4,1581.0,22.31469211]
[1673908629193,2.17496121,1581.4,1581.0,24.66888904]
[1673908630367,3.11662407,1581.3,1581.0,18.34377904]
[1673908630576,0.01600128,1581.4,1581.1,2.0]
[1673908630810,3.7505532,1581.4,1581.0,19.04125]
[1673908631133,3.11662407,1581.4,1581.0,19.04125]
[1673908631499,3.11662407,1581.4,1581.1,7.89382062]
[1673908631711,3.11662407,1581.4,1581.1,6.39046]
[1673908631978,3.11662407,1581.4,1581.1,12.71517]
[1673908632340,0.01600128,1581.5,1581.1,12.71517]
[1673908632600,3.11662407,1581.5,1581.2,7.595647]
[1673908632760,3.11662407,1581.5,1581.2,7.661647]
[1673908633603,3.11662407,1581.5,1581.3,2.0]
[1673908633812,23.1550281,1581.6,1581.3,2.0]
[1673908634059,16.14985217,1581.6,1581.3,8.32374]
[1673908634225,16.14985217,1581.6,1581.3,10.9643097]
[1673908635755,0.0625281,1581.6,1581.3,10.9643097]
[1673908636005,0.04652682,1581.6,1581.3,10.9643097]
[1673908636362,0.04652682,1581.6,1581.3,17.2882197]
[1673908636786,0.04652682,1581.6,1581.3,18.7202197]
[1673908637098,0.04652682,1581.6,1581.4,14.51903197]
[1673908637317,0.04652682,1581.6,1581.4,14.58503197]
[1673908638172,0.04652682,1581.6,1581.4,20.90854197]
[1673908641045,0.04652682,1581.6,1581.5,20.40533]
[1673908641366,0.04652682,1581.6,1581.5,22.47133]
[1673908641515,0.04652682,1581.6,1581.5,27.1020152]
[1673908642567,0.04652682,1581.6,1581.5,28.5380152]
[1673908646658,6.82e-06,1581.6,1581.5,28.5380152]
[1673908646869,0.04867591,1581.7,1581.6,2.0]
[1673908647026,0.04867591,1581.7,1581.6,22.39413]
[1673908647240,0.04867591,1581.7,1581.6,26.77743352]
[1673908650447,0.04867591,1581.7,1581.6,29.77743352]
[1673908650604,0.05218986,1582.0,1581.7,2.0]
[1673908651000,0.05218986,1582.0,1581.8,25.28764]
[1673908651187,0.05218986,1582.0,1581.8,25.35364]
[1673908654188,0.05218986,1582.0,1581.8,28.089004]
[1673908657371,0.05218986,1582.0,1581.8,25.35364]
[1673908658156,0.0088244,1581.9,1581.8,25.35364]
[1673908658614,0.0088244,1581.9,1581.8,29.78964]
[1673908660279,0.0088244,1581.9,1581.8,29.78764]
[1673908660537,0.0088244,1581.9,1581.8,29.78964]
[1673908660710,0.0088244,1581.9,1581.8,33.600827]
[1673908665390,0.05218986,1582.0,1581.8,36.71745107]
[1673908665544,0.05218986,1582.0,1581.9,5.0]
[1673908665749,9.86e-06,1582.0,1581.9,24.03053]
[1673908665965,1.00554856,1582.3,1582.0,2.0]
[1673908666213,1.00554856,1582.3,1582.1,25.28284]
[1673908666418,1.00554856,1582.3,1582.1,25.34884]
[1673908666419,0.06203196,1582.3,1582.1,25.34884]
[1673908668292,0.06203196,1582.3,1582.2,20.96093]
[1673908668492,0.06203196,1582.3,1582.2,21.02693]
[1673908669112,1e-08,1582.3,1582.2,21.02693]
[1673908669356,1e-08,1582.3,1582.2,24.537365]
[1673908670845,0.05218986,1582.4,1582.3,0.00199999]
[1673908671179,0.05218986,1582.4,1582.3,18.96172999]
[1673908671383,0.05218986,1582.4,1582.3,19.02772999]
[1673908672960,0.05418986,1582.4,1582.3,19.02572999]
[1673908673167,0.05218986,1582.4,1582.3,19.02772999]
[1673908674480,0.99570646,1582.4,1582.3,19.02772999]
[1673908675240,0.05218986,1582.4,1582.3,19.02772999]
[1673908675664,0.99570646,1582.4,1582.3,19.02772999]
[1673908680587,2.41315546,1582.4,1582.3,19.02772999]
[1673908680957,0.99570646,1582.4,1582.3,19.02772999]
[1673908682007,0.05218986,1582.4,1582.3,19.02772999]
[1673908682235,0.05218986,1582.4,1582.3,22.99853399]
[1673908682362,0.07803324,1582.5,1582.3,22.99853399]
[1673908682363,0.06203196,1582.5,1582.3,22.99853399]
[1673908682577,0.06203196,1582.5,1582.4,4.436]
[1673908682836,0.06203196,1582.5,1582.4,23.39453]
[1673908683055,0.06203196,1582.5,1582.4,27.3242454]
[1673908684697,0.06203196,1582.5,1582.4,25.8882454]
[1673908686420,0.06203196,1582.5,1582.4,22.02453]
[1673908689934,0.06203196,1582.5,1582.4,25.22453]
[1673908691403,0.06203196,1582.5,1582.4,26.66053]
[1673908691615,0.9435166,1582.7,1582.4,26.66053]
[1673908691885,0.9435166,1582.7,1582.6,25.27484]
[1673908692046,0.9435166,1582.7,1582.6,25.34084]
[1673908692246,2.44705744,1582.8,1582.6,28.218524]
[1673908692457,2.43105616,1582.8,1582.6,28.218524]
[1673908693327,1.01360716,1582.8,1582.6,28.218524]
[1673908693541,2.43105616,1582.8,1582.6,28.218524]
[1673908693745,1.01360716,1582.8,1582.6,28.218524]
[1673908694311,1.01360716,1582.8,1582.7,21.7767824]
[1673908694464,0.07009056,1582.8,1582.7,21.8427824]
[1673908695843,0.9435166,1582.9,1582.7,26.38540647]
[1673908696087,0.9435166,1582.9,1582.8,21.95373]
[1673908696358,0.9435166,1582.9,1582.8,26.22181265]
[1673908697104,0.9435166,1582.9,1582.8,27.65781265]
[1673908697320,2.3609656,1583.0,1582.8,27.65781265]
[1673908697950,0.9435166,1583.0,1582.8,27.65781265]
[1673908698784,2.43570214,1583.1,1582.8,27.65781265]
[1673908698998,2.43570214,1583.1,1582.9,4.76578127]
[1673908698999,1.01825314,1583.1,1582.9,4.76578127]
[1673908699208,1.01825314,1583.1,1583.0,25.26844]
[1673908699470,1.01825314,1583.1,1583.0,26.76044]
[1673908699625,0.07473654,1583.1,1583.0,29.76044]
[1673908699833,6.54e-06,1583.1,1583.0,33.52472453]
[1673908700171,0.05218986,1583.2,1583.1,2.0]
[1673908700377,0.05218986,1583.2,1583.1,23.95016]
[1673908700694,0.05218986,1583.2,1583.1,24.01616]
[1673908701791,0.05218986,1583.2,1583.1,25.45216]
[1673908702122,0.05218986,1583.2,1583.1,29.63722645]
[1673908702674,0.05218986,1583.2,1583.1,29.63522645]
[1673908702921,0.05218986,1583.2,1583.1,29.63722645]
[1673908705287,1.03217533,1583.5,1583.2,2.0]
[1673908705592,0.08865873,1583.5,1583.3,26.69568]
[1673908705778,0.08865873,1583.5,1583.4,24.616128]
[1673908705997,0.08865873,1583.5,1583.4,24.682128]
[1673908707802,0.08865873,1583.5,1583.4,26.118128]
[1673908708602,1.08458743,1583.7,1583.4,30.67075207]
[1673908708836,1.08458743,1583.7,1583.5,5.06707521]
[1673908708837,0.12506955,1583.7,1583.5,5.06707521]
[1673908709030,0.12506955,1583.7,1583.6,25.25888]
[1673908709238,0.12506955,1583.7,1583.6,25.32488]
[1673908709470,0.07506955,1583.7,1583.6,25.32488]
[1673908709641,0.07506955,1583.7,1583.6,28.50767552]
[1673908710385,0.07506955,1583.7,1583.6,25.32488]
[1673908710386,1.01858615,1583.7,1583.6,25.32488]
[1673908710574,0.07506955,1583.7,1583.6,25.32488]
[1673908711019,0.07506955,1583.7,1583.6,28.52488]
[1673908712093,0.02506955,1583.7,1583.6,28.52488]
[1673908712306,0.02506955,1583.7,1583.6,31.82767552]
[1673908713157,0.01600128,1583.9,1583.7,0.02506954]
[1673908713370,0.10256886,1584.0,1583.7,1.45706954]
[1673908713585,0.10256886,1584.0,1583.8,25.25568]
[1673908713772,0.10256886,1584.0,1583.8,25.32168]
[1673908714008,2.37776587,1584.0,1583.8,25.32168]
[1673908714164,3.32128247,1584.0,1583.8,25.32168]
[1673908716044,3.32128247,1584.0,1583.7,0.02506954]
[1673908716258,6.12473147,1584.0,1583.7,6.33922954]
[1673908716484,6.14073275,1584.0,1583.7,6.40522954]
[1673908716724,0.61407327,1583.9,1583.8,6.31392]
[1673908716887,0.61407327,1583.9,1583.8,6.37992]
[1673908717105,1.55758987,1583.9,1583.8,0.066]
[1673908717435,1.55758987,1583.9,1583.7,6.40522954]
[1673908717624,1.50758987,1583.9,1583.7,6.40522954]
[1673908717835,0.15075899,1583.8,1583.7,6.40522954]
[1673908721779,0.10075899,1583.8,1583.7,6.40522954]
[1673908722244,1.04427559,1583.8,1583.7,6.40522954]
[1673908722701,1.04427559,1583.8,1583.7,0.09106954]
[1673908722929,1.04427559,1583.8,1583.7,0.02506954]
[1673908725647,6.52476406,1583.8,1583.7,0.02506954]
[1673908725851,5.12331634,1583.8,1583.7,0.02506954]
[1673908726061,7.9610531,1583.8,1583.7,0.02506954]
[1673908726251,6.54931634,1583.8,1583.7,0.02506954]
[1673908726659,8.91168256,1583.8,1583.7,0.02506954]
[1673908727922,6.54931634,1583.8,1583.7,0.02506954]
[1673908728762,7.02175056,1583.8,1583.7,0.02506954]
[1673908728989,3.42733952,1583.8,1583.7,0.02506954]
[1673908729201,3.41133824,1583.8,1583.7,0.02506954]
[1673908729454,1.98533824,1583.8,1583.7,0.02506954]
[1673908730933,2.46312521,1583.8,1583.7,0.02506954]
[1673908731493,4.34935009,1583.8,1583.7,0.02506954]
[1673908731769,4.14985754,1583.8,1583.7,0.02506954]
[1673908731913,3.95135009,1583.8,1583.7,0.02506954]
[1673908732123,1.41456405,1583.8,1583.7,18.96802954]
[1673908732386,1.41456405,1583.8,1583.7,19.03402954]
[1673908732775,3.30078893,1583.8,1583.7,19.03402954]
[1673908734782,1.88622488,1583.8,1583.7,19.00896]
[1673908735388,1.41625466,1583.8,1583.7,21.229856]
[1673908735858,2.3604073,1583.8,1583.7,21.229856]
[1673908736070,1.41625466,1583.8,1583.7,21.229856]
[1673908736661,3.30247954,1583.8,1583.7,21.229856]
[1673908738596,1.88622488,1583.8,1583.7,21.229856]
[1673908738762,3.30340333,1583.8,1583.7,21.229856]
[1673908738977,1.88622488,1583.8,1583.7,21.229856]
[1673908739608,4.24818498,1583.8,1583.7,21.229856]
[1673908740040,1.88622488,1583.8,1583.7,21.229856]
[1673908742145,3.30475577,1583.8,1583.7,21.229856]
[1673908742739,1.88622488,1583.8,1583.7,21.229856]
[1673908743172,3.30461618,1583.8,1583.7,21.229856]
[1673908743384,3.30461723,1583.8,1583.7,21.229856]
[1673908743602,3.30461545,1583.8,1583.7,21.229856]
[1673908743833,1.88622488,1583.8,1583.7,21.229856]
[1673908744009,3.30460469,1583.8,1583.7,21.229856]
[1673908744211,1.41837981,1583.8,1583.7,21.229856]
[1673908744665,3.30460469,1583.8,1583.7,21.229856]
[1673908745549,1.41837981,1583.8,1583.7,21.229856]
[1673908745746,3.30460469,1583.8,1583.7,21.229856]
[1673908748207,1.88622488,1583.8,1583.7,21.229856]
[1673908748450,1.41828098,1583.8,1583.7,21.229856]
[1673908748976,1.42028098,1583.8,1583.7,21.227856]
[1673908749154,1.41828098,1583.8,1583.7,21.229856]
[1673908749782,1.42028098,1583.8,1583.7,21.227856]
[1673908749992,1.41828098,1583.8,1583.7,21.229856]
[1673908751588,1.41828098,1583.8,1583.7,19.00896]
[1673908751782,1.88622488,1583.8,1583.7,19.00896]
[1673908753131,1.88622488,1583.8,1583.7,19.00627211]
[1673908756717,3.30422809,1583.8,1583.7,19.00627211]
[1673908756925,3.20422809,1583.8,1583.7,19.00627211]
[1673908757385,1.31800321,1583.8,1583.7,19.00627211]
[1673908759411,2.26319189,1583.8,1583.7,19.00627211]
[1673908759772,1.88622488,1583.8,1583.7,19.00627211]
[1673908760686,4.26418626,1583.9,1583.7,19.00627211]
[1673908760977,4.24818498,1583.9,1583.7,19.00627211]
[1673908761558,1.88622488,1583.8,1583.7,19.00627211]
[1673908763241,1.88622488,1583.8,1583.7,20.66155564]
[1673908763714,1.88622488,1583.8,1583.7,6.37763211]
[1673908763873,1.88622488,1583.8,1583.7,0.066]
[1673908763874,2.3619601,1583.8,1583.7,0.066]
[1673908764084,2.3619601,1583.8,1583.6,9.58048]
[1673908764491,1.89068765,1583.7,1583.6,9.58048]
[1673908765078,3.56906255,1583.7,1583.6,3.266]
[1673908765399,3.56906255,1583.7,1583.6,3.2]
[1673908765400,1.6783749,1583.7,1583.6,3.2]
[1673908765609,11.10931897,1583.7,1583.4,0.066]
[1673908765759,2.36389739,1583.5,1583.2,0.066]
[1673908765974,1.89127762,1583.3,1582.9,2.15913194]
[1673908766230,0.94567946,1583.1,1582.9,2.09313194]
[1673908767038,14.89529994,1583.2,1582.9,2.09313194]
[1673908767355,0.94567946,1583.1,1582.9,2.09313194]
[1673908767980,0.94567946,1583.1,1582.9,0.09313194]
[1673908768970,16.5739577,1583.2,1582.9,0.09313194]
[1673908769687,0.94567946,1583.1,1582.9,0.09313194]
[1673908770108,15.1554385,1583.2,1582.9,6.41064194]
[1673908770289,12.53110128,1583.2,1583.1,0.94065589]
[1673908770743,13.47678074,1583.2,1583.1,0.94065589]
[1673908770955,12.53110128,1583.2,1583.1,0.94065589]
[1673908771145,12.52858111,1583.2,1583.1,0.94065589]
[1673908771977,13.47426057,1583.2,1583.1,0.94065589]
[1673908772201,15.10713855,1583.2,1583.1,0.94065589]
[1673908772859,14.16145909,1583.2,1583.1,0.94065589]
[1673908773765,12.52858111,1583.2,1583.1,0.94065589]
[1673908774435,13.47426057,1583.2,1583.1,0.94065589]
[1673908775021,26.10690057,1583.2,1583.1,4.14065589]
[1673908776309,19.79058057,1583.2,1583.1,4.14065589]
[1673908777284,22.68668555,1583.2,1583.1,4.14065589]
[1673908780471,29.00300555,1583.2,1583.1,4.14065589]
[1673908781509,21.74100609,1583.2,1583.1,4.14065589]
[1673908782053,15.42468609,1583.2,1583.1,4.14065589]
[1673908783224,12.52858111,1583.2,1583.1,4.14065589]
[1673908786774,18.84490111,1583.2,1583.1,4.14065589]
[1673908786949,36.03016518,1583.2,1583.1,4.14065589]
[1673908787160,36.97584464,1583.2,1583.1,4.14065589]
[1673908788881,37.67868438,1583.2,1583.1,4.14065589]
[1673908789074,43.21010713,1583.2,1583.1,4.14065589]
[1673908789285,43.21020654,1583.2,1583.1,4.14065589]
[1673908790042,42.26727758,1583.2,1583.1,4.14065589]
[1673908790403,43.21020663,1583.2,1583.1,4.14065589]
[1673908790666,43.2102069,1583.2,1583.1,4.14065589]
[1673908791057,42.26727758,1583.2,1583.1,4.14065589]
[1673908795032,42.26727758,1583.2,1583.1,4.1378295]
[1673908799979,32.60433351,1583.2,1583.1,4.1378295]
[1673908800190,13.47256599,1583.2,1583.1,4.1378295]
[1673908800827,12.52858111,1583.2,1583.1,4.1378295]
[1673908801040,13.47256599,1583.2,1583.1,4.1378295]
[1673908802858,14.89179306,1583.2,1583.1,4.1378295]
[1673908803175,2.0,1583.1,1583.0,0.01]
[1673908803520,23.40353123,1583.1,1582.3,0.10513817]
[1673908803811,0.94585001,1582.6,1582.3,0.10513817]
[1673908803980,3.11662407,1582.5,1582.3,0.10513817]
[1673908804340,1.436,1582.5,1582.3,0.10513817]
[1673908804938,1.436,1582.5,1582.3,0.05513817]
[1673908805800,7.75516,1582.5,1582.3,0.05513817]
[1673908805970,7.77116128,1582.5,1582.3,0.05513817]
[1673908806322,11.40952106,1582.5,1582.3,0.05513817]
[1673908806693,20.84530513,1582.5,1582.3,0.05513817]